bitfinex/quotes_SOLUSD_20250305
["timestamp","ask_amount","ask_price","bid_price","bid_amount"]
[1741182680217,1.4167,144.22,144.15,0.28432314]
[1741182680958,0.03,144.22,144.16,6.9367]
[1741182681117,0.03,144.22,144.18,312.0]
[1741182682128,0.03,144.22,144.18,32.48136701]
[1741182682321,0.03,144.22,144.2,0.28432314]
[1741182682614,0.03,144.22,144.21,32.76569015]
[1741182682832,0.03,144.22,144.21,40.40009015]
[1741182683040,0.03,144.22,144.21,14.85302314]
[1741182683240,0.03,144.22,144.21,47.33439015]
[1741182683550,0.03,144.22,144.21,14.85302314]
[1741182683718,0.03,144.22,144.21,47.33439015]
[1741182683916,0.03,144.22,144.21,14.85302314]
[1741182684142,0.03,144.22,144.21,65.98403901]
[1741182684557,0.03,144.32,144.22,0.28432314]
[1741182684722,1.81920269,144.31,144.23,0.14216157]
[1741182685055,1.386,144.29,144.21,14.5687]
[1741182685235,3.20559,144.29,144.26,312.0]
[1741182685620,6.67079,144.29,144.21,7.6344]
[1741182685838,6.67079,144.29,144.21,14.5685]
[1741182686020,3.20559,144.29,144.21,14.5685]
[1741182686430,3.20559,144.29,144.21,47.04986701]
[1741182686636,20.0,144.29,144.22,0.28432314]
[1741182686834,1.8494989,144.32,144.24,0.28432314]
[1741182687030,1.4158,144.32,144.25,6.9324]
[1741182687334,20.06544886,144.32,144.23,32.48136701]
[1741182687651,1.81919744,144.31,144.23,6.9332]
[1741182687839,3.23525411,144.32,144.24,0.28432314]
[1741182688349,1.4158,144.32,144.24,0.28432314]
[1741182688738,0.03,144.32,144.29,312.0]
[1741182688952,1.4158,144.32,144.29,312.0]
[1741182690423,101.54964886,144.31,144.29,312.0]
[1741182690621,101.54964886,144.31,144.22,82.3]
[1741182690837,84.71971243,144.3,144.22,89.2337]
[1741182691041,86.10571243,144.3,144.22,89.2337]
[1741182692246,18.64964886,144.29,144.22,82.3]
[1741182692547,84.71989371,144.28,144.21,7.6344]
[1741182692743,82.9,144.27,144.21,14.5687]
[1741182693549,82.9,144.27,144.21,312.0]
[1741182693746,1.81997092,144.26,144.21,312.0]
[1741182694347,82.9,144.25,144.21,312.0]
[1741182694527,1.82013194,144.24,144.21,312.0]
[1741182695133,20.0,144.21,144.11,6.9391]
[1741182695339,1.82073088,144.2,144.11,39.42046701]
[1741182695727,1.82073088,144.2,144.12,0.28432314]
[1741182696048,1.82073088,144.2,144.11,42.83928257]
[1741182696231,1.82073088,144.2,144.12,32.76569015]
[1741182696566,1.82073088,144.2,144.13,6.9381]
[1741182696567,1.3869,144.2,144.13,6.9381]
[1741182697434,1.82071858,144.2,144.14,0.28432314]
[1741182697653,21.3868,144.21,144.14,0.28432314]
[1741182697941,1.8207989,144.22,144.14,0.28432314]
[1741182698143,3.2075989,144.22,144.16,312.0]
[1741182698453,3.2071224,144.23,144.17,6.9362]
[1741182699530,3.2071224,144.23,144.14,32.76569015]
[1741182699731,3.2071224,144.23,144.16,0.28432314]
[1741182700159,15.2961297,144.24,144.16,0.28432314]
[1741182700530,13.9095297,144.24,144.16,0.28432314]
[1741182700932,1.82027045,144.26,144.16,32.76569015]
[1741182701146,82.9,144.25,144.19,0.28432314]
[1741182701354,1.82013462,144.27,144.19,0.28432314]
[1741182701761,20.0,144.25,144.2,6.9348]
[1741182701944,1.3864,144.26,144.23,312.0]
[1741182702950,20.0,144.25,144.23,312.0]
[1741182705167,82.9,144.28,144.23,318.9331]
[1741182705356,0.03,144.31,144.24,0.28432314]
[1741182705661,1.4159,144.31,144.24,0.28432314]
[1741182705840,1.4159,144.31,144.23,121.71446701]
[1741182705841,1.81926492,144.3,144.23,89.2331]
[1741182706565,3.23537053,144.31,144.23,89.2331]
[1741182708261,3.23537053,144.31,144.27,312.0]
[1741182708561,82.9,144.3,144.27,312.0]
[1741182709248,82.93,144.3,144.23,6.9331]
[1741182709770,82.93,144.3,144.24,32.76569015]
[1741182709945,82.93,144.3,144.25,32.48136701]
[1741182710338,0.03,144.3,144.25,6.9324]
[1741182710961,0.03,144.3,144.24,82.3]
[1741182710962,1.416,144.3,144.24,82.3]
[1741182711155,0.03,144.3,144.24,89.2328]
[1741182711742,20.03,144.3,144.24,89.2328]
[1741182712063,0.03,144.3,144.24,106.565]
[1741182712253,0.03,144.3,144.29,6.9304]
[1741182713869,0.03,144.31,144.29,6.9304]
[1741182713870,0.03,144.31,144.3,0.28432314]
[1741182714038,0.0001,144.32,144.3,51.41533901]
[1741182714236,0.03,144.34,144.33,25.862472]
[1741182714446,0.03,144.34,144.33,7.21282314]
[1741182714645,0.03,144.34,144.33,6.9285]
[1741182715249,0.03,144.34,144.31,6.9291]
[1741182715460,0.03,144.34,144.29,138.4]
[1741182715647,0.03,144.34,144.29,6.9304]
[1741182715945,0.03,144.34,144.31,312.0]
[1741182716250,0.03,144.34,144.3,0.28432314]
[1741182716561,0.03,144.34,144.3,32.76569015]
[1741182716946,0.03,144.34,144.32,0.28432314]
[1741182717543,0.03,144.4,144.37,20.0]
[1741182717758,0.03,144.4,144.39,0.14216157]
[1741182718266,0.03,144.4,144.39,7.20992314]
[1741182718487,0.03,144.4,144.39,39.69129015]
[1741182718649,0.03,144.4,144.39,0.28432314]
[1741182718846,0.03,144.4,144.39,6.9256]
[1741182719044,0.03,144.4,144.36,0.14216157]
[1741182719356,0.03,144.4,144.39,312.0]
[1741182720477,0.03,144.4,144.33,6.9281]
[1741182720681,12.4924,144.4,144.32,89.9441]
[1741182720889,0.28432314,144.38,144.26,6.9319]
[1741182721196,0.28432314,144.35,144.24,7.786]
[1741182721382,18.64964886,144.33,144.25,6.9323]
[1741182721544,1.81926809,144.32,144.25,6.9323]
[1741182721871,1.81926809,144.32,144.22,17.79417446]
[1741182721872,18.64964886,144.3,144.22,17.79417446]
[1741182722041,1.8197272,144.29,144.22,10.86057446]
[1741182722566,3.2058272,144.29,144.22,10.86057446]
[1741182722955,1.8197272,144.29,144.22,10.86057446]
[1741182723257,96.97062492,144.31,144.22,17.79407446]
[1741182723449,96.97062492,144.31,144.28,312.0]
[1741182723648,95.1509,144.31,144.28,312.0]
[1741182723962,82.9,144.31,144.28,312.0]
[1741182724165,1.81937102,144.32,144.28,312.0]
[1741182724373,1.81918159,144.33,144.28,312.0]
[1741182724867,20.0,144.32,144.28,312.0]
[1741182725048,20.0,144.32,144.28,318.9308]
[1741182725255,84.71904392,144.35,144.28,6.9308]
[1741182725463,18.64964886,144.34,144.25,6.9324]
[1741182725670,1.81919611,144.33,144.25,6.9324]
[1741182726746,84.71919611,144.33,144.25,6.9324]
[1741182727148,101.54964886,144.32,144.25,6.9324]
[1741182727354,1.81918317,144.31,144.23,7.07546157]
[1741182727555,84.71918317,144.31,144.23,7.07546157]
[1741182727750,18.64964886,144.29,144.22,0.033]
[1741182728053,1.81975849,144.29,144.22,6.9667]
[1741182728253,1.81975849,144.29,144.24,312.0]
[1741182728457,1.81975849,144.29,144.24,318.9326]
[1741182728660,84.71957321,144.3,144.24,318.9326]
[1741182729167,82.9,144.3,144.24,318.9326]
[1741182729345,84.71928803,144.33,144.25,0.28432314]
[1741182730054,82.9,144.33,144.25,32.76569015]
[1741182730261,82.9,144.33,144.27,32.48136701]
[1741182730561,82.9,144.33,144.27,6.9314]
[1741182730762,20.0,144.3,144.25,6.9323]
[1741182730971,82.9,144.31,144.23,82.3]
[1741182731171,1.81952564,144.3,144.23,82.3]
[1741182731372,1.81952564,144.3,144.24,6.9327]
[1741182732086,82.9,144.29,144.22,7.7812]
[1741182732254,84.71983281,144.28,144.24,312.0]
[1741182732757,84.71983281,144.28,144.24,318.9326]
[1741182732948,84.71983281,144.28,144.24,6.9326]
[1741182733154,82.9,144.28,144.24,6.9326]
[1741182733874,82.9,144.28,144.24,24.2648]
[1741182734277,82.9,144.32,144.24,56.74616701]
[1741182734584,84.71926179,144.35,144.27,6.9314]
[1741182734876,84.71926179,144.35,144.27,56.74136701]
[1741182735577,86.10476179,144.35,144.27,6.9314]
[1741182735958,86.10476179,144.35,144.33,312.0]
[1741182736165,82.9,144.34,144.33,312.0]
[1741182737083,84.2856,144.34,144.33,312.0]
[1741182737278,101.54964886,144.33,144.26,8.2583]
[1741182737581,84.86179582,144.32,144.22,14.6768]
[1741182737780,18.64964886,144.3,144.22,7.7431]
[1741182737988,1.81982792,144.29,144.22,14.6769]
[1741182738166,82.9,144.28,144.22,14.6769]
[1741182738365,82.9,144.28,144.22,7.7431]
[1741182738759,82.9,144.27,144.22,0.033]
[1741182738964,1.81982651,144.26,144.22,0.033]
[1741182739185,82.9,144.25,144.22,0.033]
[1741182740262,20.0,144.23,144.22,312.033]
[1741182740466,84.72022163,144.24,144.22,312.033]
[1741182741158,84.72022163,144.24,144.22,0.033]
[1741182741581,82.9,144.24,144.22,0.033]
[1741182742866,103.36989275,144.23,144.22,0.033]
[1741182743081,20.61205432,144.23,144.22,0.033]
[1741182743272,20.61205432,144.23,144.14,6.9376]
[1741182743473,18.64964886,144.21,144.14,6.9376]
[1741182743675,1.8208737,144.2,144.14,6.9376]
[1741182743985,82.9,144.19,144.13,7.7855]
[1741182744166,1.82112258,144.18,144.15,312.0]
[1741182746482,82.9,144.19,144.15,318.9369]
[1741182746883,82.9,144.19,144.15,6.9369]
[1741182747598,82.9,144.19,144.13,7.7855]
[1741182747768,82.9,144.19,144.14,6.9376]
[1741182747967,1.82088724,144.18,144.14,6.9376]
[1741182748170,1.82088724,144.18,144.13,14.7236]
[1741182748377,18.64964886,144.17,144.13,7.7855]
[1741182748685,1.82131463,144.18,144.1,24.2886]
[1741182749091,1.82131463,144.18,144.09,6.9729]
[1741182749092,101.54964886,144.17,144.09,6.9729]
[1741182749281,18.64964886,144.15,144.09,6.9729]
[1741182749489,1.82156121,144.14,144.09,6.9729]
[1741182749684,3.20906121,144.14,144.09,0.033]
[1741182749888,1.82156121,144.14,144.13,312.0]
[1741182750091,82.9,144.14,144.13,312.0]
[1741182750297,1.82138577,144.17,144.13,312.0]
[1741182750480,89.46,144.18,144.11,32.48136701]
[1741182750674,89.46,144.18,144.12,32.76569015]
[1741182750875,82.9,144.18,144.13,32.48136701]
[1741182751186,84.7207553,144.21,144.14,32.48136701]
[1741182752195,84.7207553,144.21,144.15,6.9372]
[1741182752387,84.7207553,144.21,144.14,6.9375]
[1741182753078,82.9,144.21,144.15,32.76569015]
[1741182753292,82.9,144.21,144.16,40.80396701]
[1741182753471,82.9,144.21,144.2,312.0]
[1741182753676,3.20724442,144.23,144.2,312.0]
[1741182754081,21.85689328,144.23,144.2,312.0]
[1741182754294,18.64964886,144.22,144.2,312.0]
[1741182754898,18.64964886,144.22,144.14,89.2375]
[1741182755074,82.9,144.22,144.15,0.28432314]
[1741182755398,82.9,144.22,144.15,32.76569015]
[1741182755696,1.82038862,144.21,144.14,39.41886701]
[1741182755872,1.82038862,144.21,144.14,6.9375]
[1741182756195,1.82038862,144.21,144.15,0.28432314]
[1741182756376,84.2864,144.26,144.15,0.28432314]
[1741182756577,84.2864,144.26,144.16,32.48136701]
[1741182756898,101.54964886,144.25,144.14,6.9375]
[1741182757103,107.04450039,144.25,144.14,6.9375]
[1741182757279,0.14216157,144.24,144.14,6.9375]
[1741182757487,1.8206281,144.23,144.14,6.9375]
[1741182757791,1.3868,144.21,144.16,312.0]
[1741182757999,3.20747849,144.21,144.16,312.0]
[1741182759094,3.20743972,144.22,144.16,318.9366]
[1741182759287,3.20743972,144.22,144.16,6.9366]
[1741182759597,84.72050578,144.23,144.16,6.9366]
[1741182759894,86.10710578,144.23,144.14,56.76206701]
[1741182760100,86.10710578,144.23,144.14,6.9376]
[1741182760599,86.10710578,144.23,144.15,0.28432314]
[1741182760796,84.2866,144.23,144.16,32.48136701]
[1741182760985,1.3866,144.23,144.16,32.48136701]
[1741182761296,21.3866,144.23,144.16,32.48136701]
[1741182761700,21.3866,144.23,144.15,32.76569015]
[1741182761997,21.3866,144.23,144.16,6.9367]
[1741182762176,1.82051026,144.22,144.18,312.0]
[1741182762374,84.72051026,144.22,144.18,312.0]
[1741182762774,82.9,144.22,144.18,312.0]
[1741182762972,84.2867,144.22,144.18,312.0]
[1741182763201,82.9,144.22,144.18,318.9357]
[1741182763587,82.9,144.22,144.18,6.9357]
[1741182763978,82.93,144.22,144.18,6.9357]
[1741182765211,82.93,144.22,144.17,17.3395]
[1741182765372,0.03,144.22,144.18,0.28432314]
[1741182765578,0.03,144.22,144.18,32.76569015]
[1741182766474,0.03,144.22,144.21,312.0]
[1741182767300,0.03,144.22,144.21,318.9343]
[1741182767803,0.03,144.22,144.21,351.69999015]
[1741182768100,0.03,144.22,144.21,312.0]
[1741182768480,0.03,144.22,144.21,318.9343]
[1741182768689,0.03,144.22,144.21,312.0]
[1741182768901,0.03,144.22,144.21,370.34963901]
[1741182769099,0.03,144.22,144.21,447.26049015]
[1741182769402,3.2051776,144.33,144.23,6.9333]
[1741182769702,20.0,144.3,144.24,0.28432314]
[1741182769881,82.9,144.32,144.24,32.76569015]
[1741182770600,82.9,144.32,144.24,0.28432314]
[1741182770801,3.2051776,144.33,144.23,139.04806701]
[1741182770802,84.71930579,144.31,144.23,89.2333]
[1741182771185,82.9,144.31,144.23,121.71466701]
[1741182771412,82.9,144.31,144.23,106.5667]
[1741182771704,82.9,144.31,144.23,139.04806701]
[1741182771902,82.9,144.31,144.24,0.28432314]
[1741182772209,82.9,144.31,144.26,0.28432314]
[1741182772589,12.2622,144.35,144.3,312.0]
[1741182772902,82.9,144.35,144.3,312.0]
[1741182773111,82.9,144.35,144.3,32.48136701]
[1741182773289,0.03,144.37,144.32,32.76569015]
[1741182773491,0.03,144.37,144.33,39.40986701]
[1741182773697,0.03,144.37,144.33,56.73126701]
[1741182774889,0.03,144.37,144.32,121.99449015]
[1741182775095,0.03,144.37,144.33,32.48136701]
[1741182775311,0.03,144.37,144.32,115.06569015]
[1741182775604,0.03,144.37,144.32,82.58432314]
[1741182775990,0.03,144.37,144.36,312.0]
[1741182778800,0.03,144.37,144.31,0.28432314]
[1741182778999,0.03,144.37,144.3,94.6138]
[1741182779712,0.03,144.37,144.3,82.3]
[1741182779906,18.64964886,144.35,144.28,8.1398]
[1741182780089,84.71904291,144.34,144.28,8.1398]
[1741182780406,101.54964886,144.33,144.24,90.2851]
[1741182780606,1.81926769,144.32,144.24,90.2851]
[1741182781407,1.3859,144.31,144.24,90.2851]
[1741182781812,1.3859,144.31,144.28,312.0]
[1741182782414,86.10506769,144.32,144.28,312.0]
[1741182782990,82.9,144.32,144.28,312.0]
[1741182783190,82.9,144.32,144.27,0.28432314]
[1741182783627,84.2858,144.32,144.27,0.28432314]
[1741182783801,84.2858,144.32,144.26,0.14216157]
[1741182784196,1.81897874,144.34,144.26,82.3]
[1741182784397,82.9,144.35,144.27,0.28432314]
[1741182784609,84.2855,144.35,144.27,0.28432314]
[1741182786210,84.2855,144.35,144.32,312.0]
[1741182787490,1.81889964,144.34,144.26,82.3]
[1741182787713,82.9,144.33,144.24,90.2851]
[1741182788006,1.81934649,144.32,144.24,97.2179]
[1741182788211,1.3859,144.31,144.24,90.2851]
[1741182788613,1.81933332,144.3,144.22,82.3]
[1741182788815,82.9,144.32,144.23,0.28432314]
[1741182789023,82.9,144.32,144.24,32.48136701]
[1741182789515,82.9,144.32,144.25,0.28432314]
[1741182790312,82.9,144.32,144.26,6.9319]
[1741182790614,1.81910752,144.31,144.27,312.0]
[1741182791799,82.9,144.32,144.27,312.0]
[1741182792420,82.9,144.32,144.27,318.9311]
[1741182792603,0.03,144.35,144.28,0.28432314]
[1741182792921,0.03,144.35,144.29,7.6736]
[1741182793421,1.84873619,144.35,144.29,7.6736]
[1741182793599,82.9,144.34,144.27,6.9311]
[1741182793800,84.71902981,144.34,144.27,6.9311]
[1741182794327,82.9,144.34,144.27,24.2597]
[1741182794509,82.9,144.34,144.28,0.28432314]
[1741182795027,82.9,144.34,144.27,24.2597]
[1741182795224,82.9,144.34,144.27,6.9311]
[1741182795225,84.2856,144.34,144.27,6.9311]
[1741182795523,82.9,144.34,144.29,312.0]
[1741182796209,82.9,144.34,144.27,56.74106701]
[1741182796406,82.9,144.34,144.3,6.93]
[1741182796719,0.03,144.35,144.3,6.93]
[1741182796916,0.03,144.35,144.31,0.28432314]
[1741182797110,0.03,144.35,144.31,32.76569015]
[1741182797427,0.03,144.35,144.32,8.1807]
[1741182797599,0.03,144.35,144.32,40.66206701]
[1741182797932,0.0001,144.35,144.34,52.76569015]
[1741182798103,0.03,144.37,144.34,71.41533901]
[1741182798420,0.03,144.37,144.36,32.76569015]
[1741182798794,0.03,144.37,144.36,39.69279015]
[1741182798998,0.03,144.37,144.36,121.99279015]
[1741182799193,0.03,144.37,144.36,394.58432314]
[1741182799420,0.03,144.37,144.36,394.3]
[1741182800202,0.03,144.37,144.36,312.0]
[1741182800425,0.03,144.37,144.33,82.3]
[1741182800820,84.74852654,144.37,144.27,232.9245]
[1741182801011,84.74852654,144.37,144.27,127.00586701]
[1741182801705,84.74852654,144.37,144.28,0.28432314]
[1741182802213,31.48984886,144.36,144.27,94.5245]
[1741182802511,1.81888386,144.35,144.27,94.5245]
[1741182802916,1.3856,144.34,144.27,82.3]
[1741182803105,84.71910782,144.33,144.26,7.9194]
[1741182803315,84.71910782,144.33,144.28,312.0]
[1741182803626,84.71910782,144.33,144.24,82.3]
[1741182803918,18.64964886,144.31,144.23,12.7879]
[1741182804135,82.9,144.32,144.23,12.7879]
[1741182804346,82.9,144.32,144.23,45.26926701]
[1741182804638,82.9,144.32,144.23,12.7879]
[1741182804935,82.9,144.32,144.22,7.7336]
[1741182804936,18.64964886,144.31,144.22,7.7336]
[1741182805098,0.14216157,144.25,144.21,0.033]
[1741182805304,28.95029903,144.24,144.13,8.1325]
[1741182805613,18.64964886,144.22,144.14,32.48136701]
[1741182805814,1.82069046,144.21,144.14,32.48136701]
[1741182806021,1.82060214,144.24,144.15,32.48136701]
[1741182806204,1.82060214,144.24,144.16,32.48136701]
[1741182806524,84.72027293,144.25,144.17,32.48136701]
[1741182806708,12.6462,144.26,144.2,312.0]
[1741182806908,3.20652642,144.25,144.2,312.0]
[1741182807113,1.3865,144.25,144.2,312.0]
[1741182808135,20.0,144.21,144.2,312.0]
[1741182808433,20.0,144.21,144.13,8.1325]
[1741182809124,20.0,144.17,144.13,0.033]
[1741182809498,1.82123666,144.16,144.13,0.033]
[1741182811030,1.3873,144.16,144.13,0.033]
[1741182811210,86.10863833,144.16,144.13,0.033]
[1741182811522,101.54964886,144.15,144.13,0.033]
[1741182811725,20.47127311,144.14,144.13,0.033]
[1741182811931,84.72166031,144.15,144.13,0.033]
[1741182812908,1.3873,144.16,144.13,0.033]
[1741182813220,3.20832602,144.16,144.13,0.033]
[1741182813523,4.8556,144.16,144.13,0.033]
[1741182813724,103.37081296,144.15,144.09,0.033]
[1741182813933,18.64964886,144.13,144.09,0.033]
[1741182814107,1.82183214,144.13,144.09,0.033]
[1741182814303,8.21900935,144.15,144.09,0.033]
[1741182814522,20.0,144.13,144.1,312.0]
[1741182815026,1.3877,144.12,144.1,312.0]
[1741182816509,1.3875,144.14,144.1,312.0]
[1741182816710,1.3875,144.14,144.09,0.033]
[1741182817110,1.3874,144.15,144.09,0.033]
[1741182817311,5.29026645,144.14,144.09,0.033]
[1741182817517,3.4688,144.14,144.09,0.033]
[1741182819317,1.3875,144.14,144.09,0.033]
[1741182819728,1.3875,144.14,144.13,312.0]
[1741182820012,1.3873,144.16,144.13,312.0]
[1741182820213,1.3873,144.16,144.1,0.28432314]
[1741182820430,1.3873,144.16,144.1,0.14216157]
[1741182820630,1.3873,144.16,144.1,0.28432314]
[1741182821236,1.3873,144.16,144.09,13.1279]
[1741182821237,4.8556,144.16,144.09,13.1279]
[1741182821934,1.3872,144.17,144.1,0.28432314]
[1741182822777,20.0,144.16,144.1,82.3]
[1741182823239,20.0,144.16,144.13,312.0]
[1741182823442,1.3874,144.15,144.13,312.0]
[1741182824030,24.856,144.15,144.09,0.033]
[1741182824411,21.3874,144.15,144.09,0.033]
[1741182825240,20.0,144.15,144.09,0.31732314]
[1741182825435,1.387,144.19,144.09,53.04449894]
[1741182825822,4.8546,144.19,144.09,0.31732314]
[1741182826723,4.8546,144.19,144.09,53.04449894]
[1741182826919,1.387,144.19,144.1,18.64964886]
[1741182827128,1.387,144.19,144.15,312.0]
[1741182827639,1.387,144.19,144.12,0.28432314]
[1741182828017,1.8211629,144.2,144.12,18.933972]
[1741182828222,1.8211629,144.2,144.12,0.28432314]
[1741182828223,1.82067775,144.2,144.12,0.28432314]
[1741182829023,19.77080637,144.21,144.12,0.28432314]
[1741182829743,20.0,144.18,144.12,0.28432314]
[1741182830543,20.0,144.18,144.17,312.0]
[1741182831450,21.3871,144.18,144.17,312.0]
[1741182831965,97.3831,144.21,144.17,312.0]
[1741182832251,20.0,144.2,144.13,113.66364886]
[1741182833468,1.387,144.19,144.13,113.66364886]
[1741182833641,20.0,144.2,144.13,113.66364886]
[1741182833822,21.3869,144.2,144.13,120.60174886]
[1741182834037,21.3869,144.2,144.13,113.66364886]
[1741182834243,21.3869,144.2,144.13,120.60174886]
[1741182835053,21.3869,144.2,144.19,312.0]
[1741182835437,20.0,144.2,144.19,312.0]
[1741182836451,21.3869,144.2,144.19,312.0]
[1741182836652,24.8543,144.2,144.13,82.3]
[1741182836854,24.8543,144.2,144.12,138.68432314]
[1741182837339,4.8543,144.2,144.12,138.68432314]
[1741182837542,3.4674,144.2,144.12,138.68432314]
[1741182838256,3.4674,144.2,144.12,145.62282314]
[1741182838562,1.4168,144.21,144.12,178.04555201]
[1741182839151,1.4168,144.21,144.12,121.94555201]
[1741182839357,1.4168,144.21,144.12,89.52282314]
[1741182839563,1.4168,144.21,144.18,312.0]
[1741182839857,20.0,144.17,144.09,0.033]
[1741182840359,20.0,144.17,144.09,18.68264886]
[1741182840752,20.0,144.17,144.1,0.28432314]
[1741182841661,4.8556,144.16,144.1,0.28432314]
[1741182842045,4.8556,144.16,144.09,0.033]
[1741182842746,4.8556,144.16,144.1,312.0]
[1741182843146,1.82132722,144.15,144.1,312.0]
[1741182843568,18.64964886,144.12,144.09,0.033]
[1741182843868,89.57853132,144.13,144.09,0.033]
[1741182844047,87.7566,144.13,144.09,0.033]
[1741182844248,1.3876,144.13,144.09,0.033]
[1741182845566,1.3874,144.15,144.09,0.033]
[1741182846667,1.3874,144.15,144.13,312.0]
[1741182846863,84.2874,144.15,144.13,312.0]
[1741182847364,20.0,144.12,144.09,0.033]
[1741182847574,20.0,144.11,144.09,0.033]
[1741182847792,1.3874,144.15,144.09,0.033]
[1741182848071,3.2086639,144.15,144.09,0.033]
[1741182848847,20.0,144.13,144.09,0.033]
[1741182849072,20.0,144.11,144.09,0.033]
[1741182850183,21.3878,144.11,144.09,0.033]
[1741182850392,21.3878,144.11,144.09,312.033]
[1741182851289,21.3878,144.11,144.09,0.033]
[1741182851855,20.0,144.11,144.09,0.033]
[1741182852089,1.3877,144.13,144.09,0.033]
[1741182852392,1.3874,144.15,144.09,0.033]
[1741182852672,1.3873,144.16,144.1,0.28432314]
[1741182852858,15.02769587,144.17,144.1,0.28432314]
[1741182853061,16.41489587,144.17,144.1,0.28432314]
[1741182853690,19.88299587,144.17,144.1,0.28432314]
[1741182853855,4.8553,144.17,144.1,0.28432314]
[1741182854056,4.8553,144.17,144.09,20.2996]
[1741182854382,1.82119922,144.16,144.12,312.0]
[1741182855155,1.82119922,144.16,144.09,7.5934]
[1741182855373,20.0,144.14,144.09,7.5934]
[1741182856155,1.3876,144.13,144.09,7.5934]
[1741182856359,21.3876,144.13,144.09,0.033]
[1741182856567,24.8566,144.13,144.09,0.033]
[1741182857265,26.67828611,144.13,144.09,0.033]
[1741182857658,12.4001,144.12,144.09,0.033]
[1741182857978,1.82209714,144.11,144.09,0.033]
[1741182858150,1.3879,144.1,144.09,0.033]
[1741182860150,1.3878,144.11,144.09,0.033]
[1741182860473,1.82211256,144.1,144.07,0.033]
[1741182861382,20.0,144.08,144.07,0.033]
[1741182861559,3.20977516,144.11,144.07,0.033]
[1741182861763,6.67927516,144.11,144.07,0.033]
[1741182862181,1.3878,144.11,144.07,0.033]
[1741182862485,82.9,144.15,144.08,0.28432314]
[1741182862783,82.9,144.15,144.08,82.58432314]
[1741182863385,82.9,144.15,144.12,312.0]
[1741182863587,1.3873,144.16,144.12,312.0]
[1741182864278,1.3873,144.16,144.1,0.28432314]
[1741182864780,95.56629923,144.17,144.1,82.58432314]
[1741182864781,10.84504336,144.17,144.1,82.58432314]
[1741182865079,10.84504336,144.17,144.1,115.00705201]
[1741182865311,10.84504336,144.17,144.09,7.8802]
[1741182865312,82.9,144.16,144.09,7.8802]
[1741182865499,1.3875,144.14,144.09,0.033]
[1741182865671,84.72164585,144.15,144.09,0.033]
[1741182865866,82.9,144.15,144.09,0.033]
[1741182866270,82.9,144.15,144.1,7.6795]
[1741182866573,0.03,144.17,144.11,0.28432314]
[1741182866777,1.4172,144.17,144.11,0.28432314]
[1741182867277,1.4172,144.17,144.15,312.0]
[1741182867683,21.3873,144.16,144.15,312.0]
[1741182868067,20.0,144.16,144.15,312.0]
[1741182868268,0.03,144.17,144.15,312.0]
[1741182869486,21.4172,144.17,144.15,312.0]
[1741182869867,20.0,144.16,144.15,312.0]
[1741182870474,20.0,144.16,144.1,89.9795]
[1741182870683,20.0,144.15,144.1,89.9795]
[1741182871389,20.0,144.15,144.1,96.919]
[1741182871791,0.03,144.17,144.11,0.28432314]
[1741182872097,0.03,144.17,144.11,20.55916044]
[1741182872892,0.03,144.17,144.11,0.28432314]
[1741182873092,1.4172,144.17,144.11,0.28432314]
[1741182873279,4.8853,144.17,144.11,0.28432314]
[1741182873480,4.8853,144.17,144.15,312.0]
[1741182873678,4.8853,144.17,144.11,0.28432314]